bitfinex-derivatives/quotes_BTCF0:USTF0_20220103
["timestamp","ask_amount","ask_price","bid_price","bid_amount"]
[1641231284570,0.14033567,46753.0,46752.0,0.1674]
[1641231285170,0.16733567,46753.0,46752.0,0.1674]
[1641231285370,1.23679667,46753.0,46752.0,0.1674]
[1641231285773,2.36379667,46753.0,46752.0,0.1674]
[1641231286373,2.36379667,46753.0,46746.0,0.14033567]
[1641231286573,2.37079433,46753.0,46750.0,0.1674]
[1641231286774,2.35819433,46753.0,46750.0,0.1674]
[1641231286973,2.37079433,46753.0,46750.0,0.1674]
[1641231287174,2.39779433,46753.0,46750.0,0.1674]
[1641231287374,0.0615843,46752.0,46750.0,0.1674]
[1641231287777,1.069495,46751.0,46750.0,0.1674]
[1641231288176,0.0615843,46752.0,46750.0,0.1674]
[1641231288377,0.18873333,46753.0,46750.0,0.1674]
[1641231288579,1.28873333,46753.0,46750.0,0.1674]
[1641231288782,1.069484,46752.0,46750.0,0.1674]
[1641231289279,1.21690205,46751.0,46749.0,0.0474]
[1641231289479,1.21690205,46751.0,46748.0,0.0474]
[1641231289678,1.069518,46750.0,46748.0,0.0474]
[1641231290179,1.069518,46750.0,46749.0,0.12]
[1641231291279,1.104518,46750.0,46749.0,0.12]
[1641231291882,0.035,46750.0,46749.0,0.12]
[1641231292479,0.16173333,46753.0,46749.0,0.12]
[1641231292680,0.16173333,46753.0,46751.0,0.0474]
[1641231293080,1.15876904,46752.0,46751.0,0.0474]
[1641231293280,2.28576904,46752.0,46751.0,0.0474]
[1641231293481,2.28576904,46752.0,46749.0,0.12]
[1641231293882,2.28576904,46752.0,46748.0,0.0474]
[1641231294683,1.15876904,46752.0,46748.0,0.1674]
[1641231295285,1.19376904,46752.0,46748.0,0.1674]
[1641231295785,2.32076904,46752.0,46748.0,0.1674]
[1641231297186,2.33336904,46752.0,46748.0,0.1674]
[1641231297486,2.32076904,46752.0,46748.0,0.1674]
[1641231298487,2.33056304,46752.0,46748.0,0.1674]
[1641231298687,1.20356304,46752.0,46748.0,0.1674]
[1641231298890,1.114266,46752.0,46748.0,0.1674]
[1641231299289,1.114266,46752.0,46746.0,0.14033567]
[1641231299490,1.114266,46752.0,46751.0,0.1674]
[1641231299689,1.114266,46752.0,46751.0,0.24044]
[1641231300689,1.069472,46752.0,46751.0,0.24044]
[1641231300890,0.14033567,46753.0,46751.0,0.24044]
[1641231301389,0.033,46752.0,46751.0,0.26344]
[1641231302692,0.14033567,46753.0,46751.0,0.24044]
[1641231302994,0.14033567,46758.0,46751.0,0.24044]
[1641231303191,0.14033567,46758.0,46753.0,0.12]
[1641231303392,0.14033567,46758.0,46757.0,0.1674]
[1641231304893,0.24301072,46758.0,46757.0,0.1674]
[1641231305394,0.27701072,46758.0,46757.0,0.1864]
[1641231306606,0.24301072,46758.0,46757.0,0.1674]
[1641231307210,0.27701072,46758.0,46757.0,0.1674]
[1641231308409,0.27701072,46758.0,46751.0,0.14033567]
[1641231308709,0.0126,46752.0,46746.0,0.1674]
[1641231308908,0.03399851,46752.0,46747.0,0.1674]
[1641231309308,0.05539851,46752.0,46747.0,0.1674]
[1641231309509,0.0126,46751.0,46747.0,0.1674]
[1641231309909,0.05539851,46752.0,46747.0,0.1674]
[1641231310109,0.06799851,46752.0,46747.0,0.1674]
[1641231310710,0.06799851,46752.0,46748.0,0.1674]
[1641231310711,0.14033567,46751.0,46748.0,0.1674]
[1641231311212,0.17533567,46751.0,46748.0,0.1674]
[1641231311812,0.10240937,46750.0,46748.0,0.1674]
[1641231313417,0.13740937,46750.0,46748.0,0.1674]
[1641231313616,0.13740937,46750.0,46738.0,0.32033567]
[1641231313816,0.13740937,46750.0,46748.0,0.1674]
[1641231314615,0.10240937,46750.0,46748.0,0.1674]
[1641231315217,0.13740937,46750.0,46748.0,0.1674]
[1641231315717,0.13740937,46750.0,46738.0,0.32033567]
[1641231315919,0.13740937,46750.0,46748.0,0.1674]
[1641231316121,0.035,46750.0,46748.0,0.1674]
[1641231316721,0.02139851,46752.0,46749.0,0.14033567]
[1641231316921,0.02139851,46752.0,46751.0,0.1674]
[1641231317320,0.17508822,46752.0,46751.0,0.1674]
[1641231317520,0.05439851,46752.0,46751.0,0.1674]
[1641231317919,0.17508822,46752.0,46751.0,0.1674]
[1641231318122,0.05439851,46752.0,46751.0,0.1674]
[1641231318419,0.17508822,46752.0,46751.0,0.1674]
[1641231318619,0.14208822,46752.0,46751.0,0.1674]
[1641231319419,0.17608822,46752.0,46751.0,0.1674]
[1641231320220,0.05539851,46752.0,46751.0,0.1674]
[1641231320721,0.02139851,46752.0,46751.0,0.1674]
[1641231321423,0.05539851,46752.0,46751.0,0.1674]
[1641231322724,0.02139851,46752.0,46751.0,0.1674]
[1641231323322,0.06639851,46752.0,46751.0,0.1674]
[1641231324123,0.06639851,46752.0,46745.0,0.1674]
[1641231324323,0.022394,46751.0,46745.0,0.1674]
[1641231324525,1.136794,46751.0,46745.0,0.1674]
[1641231324723,1.149394,46751.0,46745.0,0.1674]
[1641231324923,1.149394,46751.0,46743.0,0.1674]
[1641231325124,1.127,46749.0,46743.0,0.1674]
[1641231325524,0.02139953,46748.0,46743.0,0.1674]
[1641231326324,0.0126,46747.0,46743.0,0.1674]
[1641231326724,0.02139953,46748.0,46743.0,0.1674]
[1641231327326,0.06639953,46748.0,46743.0,0.1674]
[1641231328129,0.06639953,46748.0,46747.0,0.1674]
[1641231328729,0.02139953,46748.0,46747.0,0.1674]
[1641231329431,0.06539953,46748.0,46747.0,0.1674]
[1641231330032,0.044,46748.0,46747.0,0.1674]
[1641231330634,0.0311924,46751.0,46747.0,0.1674]
[1641231331333,0.0761924,46751.0,46750.0,0.1674]
[1641231331536,0.0663984,46751.0,46750.0,0.1674]
[1641231331933,0.045,46751.0,46750.0,0.1674]
[1641231332537,0.14033567,46752.0,46750.0,0.1674]
[1641231333239,1.069495,46751.0,46750.0,0.1674]
[1641231334038,0.18633567,46752.0,46750.0,0.1674]
[1641231334742,0.14033567,46752.0,46750.0,0.1674]
[1641231335342,0.18633567,46752.0,46750.0,0.1674]
[1641231336644,0.14033567,46752.0,46750.0,0.1674]
[1641231337043,0.12069217,46751.0,46750.0,0.1674]
[1641231337844,0.12069217,46751.0,46747.0,0.1674]
[1641231338045,1.127,46750.0,46747.0,0.1674]
[1641231338643,0.12069217,46751.0,46747.0,0.1674]
[1641231338846,0.08021951,46749.0,46747.0,0.1674]
[1641231339244,0.12069586,46748.0,46747.0,0.1674]
[1641231339948,0.12069586,46748.0,46742.0,0.14033567]
[1641231339949,0.12069586,46748.0,46744.0,0.1674]
[1641231340245,1.127,46747.0,46744.0,0.1674]
[1641231341246,0.19663586,46748.0,46744.0,0.1674]
[1641231341247,1.24769586,46746.0,46744.0,0.1674]
[1641231341744,1.127,46746.0,46744.0,0.1674]
[1641231342347,0.19404671,46745.0,46744.0,0.1674]
[1641231343047,0.07334619,46745.0,46744.0,0.1674]
[1641231343448,0.11934619,46745.0,46744.0,0.1674]
[1641231344750,0.07334619,46745.0,46744.0,0.1674]
[1641231345550,0.11934619,46745.0,46744.0,0.1674]
[1641231346750,0.07334619,46745.0,46744.0,0.1674]
[1641231347552,0.11934619,46745.0,46744.0,0.1674]
[1641231348153,1.24634619,46745.0,46744.0,0.1674]
[1641231348759,1.20034619,46745.0,46744.0,0.1674]
[1641231349457,1.24634619,46745.0,46744.0,0.1674]
[1641231350260,1.24634619,46745.0,46742.0,0.14033567]
[1641231350460,0.02140203,46743.0,46738.0,0.14033567]
[1641231350658,0.02140203,46743.0,46742.0,0.001]
[1641231350862,1.26733567,46743.0,46742.0,0.001]
[1641231351059,1.27712967,46743.0,46742.0,0.001]
[1641231351262,1.41043604,46743.0,46742.0,0.001]
[1641231351461,1.45543604,46743.0,46733.0,0.14033567]
[1641231351660,1.45543604,46743.0,46732.0,0.56614765]
[1641231351661,0.0126,46738.0,46732.0,0.56614765]
[1641231352060,0.0126,46738.0,46737.0,0.001]
[1641231352261,0.009794,46738.0,46737.0,0.001]
[1641231352465,0.022394,46738.0,46737.0,0.001]
[1641231352660,0.009794,46738.0,46737.0,0.001]
[1641231352862,0.15012967,46738.0,46737.0,0.001]
[1641231353261,0.15012967,46738.0,46736.0,0.1674]
[1641231353461,0.3168998,46738.0,46736.0,0.1674]
[1641231354062,0.3168998,46738.0,46726.0,0.56614765]
[1641231354263,1.14840528,46737.0,46726.0,0.56614765]
[1641231354463,1.23951528,46737.0,46736.0,0.1674]
[1641231354872,1.21811,46737.0,46736.0,0.1674]
[1641231355071,1.23951528,46737.0,46726.0,0.18]
[1641231355272,0.11251528,46737.0,46736.0,0.1674]
[1641231355472,0.17751528,46737.0,46736.0,0.1674]
[1641231356475,0.17751528,46737.0,46734.0,0.1674]
[1641231356673,0.11251528,46737.0,46734.0,0.1674]
[1641231356874,0.02140528,46737.0,46734.0,0.1674]
[1641231357574,0.08640528,46737.0,46734.0,0.1674]
[1641231358674,0.02140528,46737.0,46734.0,0.1674]
[1641231358875,0.03400528,46737.0,46734.0,0.1674]
[1641231359375,1.16100528,46737.0,46724.0,0.70648332]
[1641231359575,1.21440528,46737.0,46733.0,0.1674]
[1641231360077,0.08740528,46737.0,46733.0,0.1674]
[1641231360279,0.08740528,46737.0,46735.0,0.1674]
[1641231360478,0.08740528,46737.0,46731.0,0.1674]
[1641231360679,1.127,46736.0,46731.0,0.1674]
[1641231361577,0.067,46736.0,46731.0,0.1674]
[1641231361978,0.067,46736.0,46726.0,0.18]
[1641231362177,0.067,46736.0,46735.0,0.1674]
[1641231362880,0.067,46736.0,46724.0,0.70648332]
[1641231363179,0.067,46736.0,46733.0,0.1674]
[1641231363579,0.118,46736.0,46733.0,0.1674]
[1641231364780,0.05390528,46737.0,46733.0,0.1674]
[1641231364979,0.0325,46737.0,46736.0,0.1674]
[1641231365579,0.0975,46737.0,46726.0,0.18]
[1641231365979,0.0975,46737.0,46734.0,0.1674]
[1641231366180,0.02140506,46736.0,46734.0,0.1674]
[1641231366379,0.0975,46737.0,46734.0,0.1674]
[1641231366680,0.0325,46737.0,46734.0,0.1674]
[1641231367080,0.02140506,46736.0,46734.0,0.1674]
[1641231367380,0.0325,46737.0,46734.0,0.1674]
[1641231367580,0.0975,46737.0,46734.0,0.1674]
[1641231368682,0.02140506,46736.0,46734.0,0.1674]
[1641231369383,0.02140506,46736.0,46731.0,0.1674]
[1641231369581,0.08640506,46736.0,46731.0,0.1674]
[1641231371082,0.18167506,46736.0,46731.0,0.1674]
[1641231371282,1.127,46735.0,46731.0,0.1674]
[1641231371782,1.127,46735.0,46726.0,0.56614765]
[1641231371986,1.127,46735.0,46730.0,0.1674]
[1641231372882,1.127,46735.0,46733.0,0.1674]
[1641231373082,1.127,46735.0,46730.0,0.1674]
[1641231373282,0.02140633,46734.0,46733.0,0.1674]
[1641231373482,1.23988997,46734.0,46733.0,0.1674]
[1641231373783,1.23988997,46734.0,46732.0,0.1674]
[1641231374187,1.23988997,46734.0,46725.0,0.56614765]
[1641231374385,1.23988997,46734.0,46732.0,0.1674]
[1641231374587,1.23988997,46734.0,46729.0,0.1674]
[1641231374787,0.02140764,46731.0,46729.0,0.1674]
[1641231374986,0.02140764,46731.0,46730.0,0.001]
[1641231375686,0.09620164,46731.0,46730.0,0.001]
[1641231375887,1.28291205,46731.0,46730.0,0.001]
[1641231376287,2.35287705,46731.0,46730.0,0.001]
[1641231376789,2.28787705,46731.0,46730.0,0.001]
[1641231377190,2.42821272,46731.0,46730.0,0.001]
[1641231377487,2.49321272,46731.0,46730.0,0.001]
[1641231378793,2.42821272,46731.0,46730.0,0.001]
[1641231379596,2.49321272,46731.0,46730.0,0.001]
[1641231379798,2.61396836,46731.0,46730.0,0.001]
[1641231380797,2.54896836,46731.0,46730.0,0.001]
[1641231381597,2.61396836,46731.0,46730.0,0.001]
[1641231381999,2.49321272,46731.0,46730.0,0.001]
[1641231382198,2.49321272,46731.0,46721.0,0.1674]
[1641231382403,0.0126,46725.0,46718.0,0.1674]
[1641231382599,0.009794,46724.0,46718.0,0.1674]
[1641231382799,1.127,46723.0,46718.0,0.1674]
[1641231383000,1.127,46723.0,46722.0,0.001]
[1641231383200,1.26733567,46723.0,46722.0,0.001]
[1641231383603,1.33333567,46723.0,46718.0,0.1674]
[1641231383801,0.0126,46722.0,46718.0,0.1674]
[1641231384203,1.127,46720.0,46718.0,0.1674]
[1641231384703,1.127,46720.0,46718.0,0.0742]
[1641231384906,0.1058,46722.0,46718.0,0.0742]
[1641231385104,1.40767134,46723.0,46721.0,0.0742]
[1641231385504,0.095,46722.0,46721.0,0.0742]
[1641231385704,0.095,46722.0,46718.0,0.0629]
[1641231385705,2.292159,46722.0,46719.0,0.0742]
[1641231385904,2.337959,46722.0,46719.0,0.0742]
[1641231386105,2.292159,46722.0,46721.0,0.0742]
[1641231386706,2.197159,46722.0,46721.0,0.0742]
[1641231387605,2.292159,46722.0,46721.0,0.0742]
[1641231390807,2.197159,46722.0,46721.0,0.0742]
[1641231391609,2.292159,46722.0,46721.0,0.0742]
[1641231392808,2.197159,46722.0,46721.0,0.0742]
[1641231393511,2.897959,46722.0,46716.0,0.56614765]
[1641231393709,1.2328,46718.0,46712.0,1.12660737]
[1641231393911,1.2328,46716.0,46715.0,0.57117774]
[1641231394109,1.2328,46716.0,46715.0,0.57217774]
[1641231394312,1.4468,46716.0,46715.0,0.57217774]
[1641231394509,1.341,46716.0,46712.0,0.37278509]
[1641231394711,1.341,46716.0,46713.0,0.0742]
[1641231394912,1.127,46713.0,46712.0,0.37278509]
[1641231395213,1.127,46713.0,46712.0,0.37378509]
[1641231395410,2.47804834,46713.0,46712.0,0.37378509]
[1641231395611,2.6429834,46713.0,46712.0,0.37278509]
[1641231395826,2.6429834,46713.0,46708.0,0.0742]
[1641231396110,2.6429834,46713.0,46712.0,0.001]
[1641231396711,1.5159834,46713.0,46712.0,0.001]
[1641231396910,1.4219834,46713.0,46712.0,0.0742]
[1641231397514,0.37467134,46713.0,46712.0,0.14267]
[1641231397911,0.37467134,46713.0,46712.0,0.14367]
[1641231398811,0.28067134,46713.0,46712.0,0.14367]
[1641231399611,0.37567134,46713.0,46712.0,0.14367]
[1641231399811,0.37567134,46713.0,46712.0,0.2552]
[1641231400310,0.37567134,46713.0,46712.0,0.0752]
[1641231400912,0.28067134,46713.0,46712.0,0.0752]
[1641231401612,0.37567134,46713.0,46712.0,0.0752]
[1641231402915,0.28067134,46713.0,46712.0,0.0752]
[1641231403118,0.07099297,46716.0,46712.0,0.0752]
[1641231403331,0.07099297,46716.0,46715.0,0.001]
[1641231403731,1.14130097,46716.0,46715.0,0.001]
[1641231404331,1.127,46728.0,46715.0,0.001]
[1641231404533,1.127,46728.0,46727.0,0.0742]
[1641231404731,1.71202214,46730.0,46727.0,0.16236]
[1641231404933,1.070033,46728.0,46727.0,0.16236]
[1641231405331,1.19077636,46729.0,46727.0,0.16236]
[1641231405532,1.070033,46728.0,46727.0,0.16236]
[1641231405733,1.166033,46728.0,46727.0,0.16236]
[1641231405930,0.096,46728.0,46727.0,0.16236]
[1641231406132,1.166033,46728.0,46727.0,0.16236]
[1641231406331,1.22529425,46728.0,46727.0,0.16236]
[1641231406931,1.22529425,46728.0,46727.0,0.0742]
[1641231407131,1.12929425,46728.0,46724.0,0.0742]
[1641231407333,2.25629425,46728.0,46724.0,0.0742]
[1641231407532,0.02140917,46727.0,46724.0,0.0742]
[1641231407832,1.070079,46726.0,46724.0,0.071]
[1641231408035,1.127,46725.0,46724.0,0.071]
[1641231408334,0.359644,46725.0,46724.0,0.1452]
[1641231408732,0.02141165,46725.0,46724.0,0.1452]
[1641231408934,0.359644,46725.0,46724.0,0.1452]
[1641231409132,0.359644,46725.0,46724.0,0.0742]
[1641231409332,0.02141165,46725.0,46724.0,0.0742]
[1641231409533,0.38105565,46725.0,46724.0,0.0742]
[1641231409733,0.59683043,46725.0,46724.0,0.0742]
[1641231410033,1.18651365,46725.0,46724.0,0.0742]
[1641231410434,1.27687972,46725.0,46724.0,0.0742]
[1641231411035,1.25546807,46725.0,46724.0,0.0742]
[1641231413136,1.16046807,46725.0,46724.0,0.0742]
[1641231413737,1.25546807,46725.0,46724.0,0.0742]
[1641231415038,1.16046807,46725.0,46724.0,0.0742]
[1641231415842,1.27646807,46725.0,46724.0,0.0872]
[1641231416641,1.39723831,46725.0,46724.0,0.0872]
[1641231417743,1.27546807,46725.0,46724.0,0.0742]
[1641231419143,1.28123888,46725.0,46724.0,0.0742]
[1641231419742,1.39523888,46725.0,46724.0,0.1432]
[1641231421744,1.39623888,46725.0,46724.0,0.0742]
[1641231422543,2.52323888,46725.0,46719.0,0.14033567]
[1641231423145,1.127,46723.0,46719.0,0.14033567]
[1641231423345,1.127,46723.0,46722.0,0.001]
[1641231423747,1.86261348,46723.0,46722.0,0.001]
[1641231423947,1.88402584,46723.0,46722.0,0.001]
[1641231425147,1.76902584,46723.0,46722.0,0.001]
[1641231425747,1.88502584,46723.0,46722.0,0.001]
[1641231427148,1.76902584,46723.0,46722.0,0.001]
[1641231427749,1.88402584,46723.0,46713.0,0.18]
[1641231428149,1.76325503,46723.0,46713.0,0.18]
[1641231428551,0.12078035,46722.0,46713.0,0.18]
[1641231428753,0.12078035,46722.0,46718.0,0.001]
[1641231428951,0.27674803,46723.0,46721.0,0.001]
[1641231429151,1.070205,46721.0,46713.0,0.18]
[1641231429351,1.070205,46721.0,46718.0,0.001]
[1641231429550,1.070251,46722.0,46720.0,0.001]
[1641231429752,0.16174803,46723.0,46721.0,0.001]
[1641231430051,1.070182,46722.0,46713.0,0.18]
[1641231430251,1.070182,46722.0,46718.0,0.001]
[1641231430456,1.070182,46722.0,46721.0,0.001]
[1641231431355,2.31796059,46722.0,46721.0,0.001]
[1641231431754,2.49888104,46722.0,46721.0,0.001]
[1641231433154,2.38288104,46722.0,46721.0,0.001]
[1641231433754,2.49888104,46722.0,46721.0,0.001]
[1641231435156,2.38288104,46722.0,46721.0,0.001]
[1641231435758,2.49888104,46722.0,46721.0,0.001]
[1641231437157,2.38288104,46722.0,46721.0,0.001]
[1641231437762,2.49888104,46722.0,46721.0,0.001]
[1641231438664,2.37810245,46722.0,46721.0,0.001]
[1641231439066,2.38288829,46722.0,46721.0,0.001]
[1641231439864,2.49888829,46722.0,46721.0,0.001]
[1641231440264,2.99888829,46722.0,46721.0,0.001]
[1641231440865,2.99888829,46722.0,46709.0,0.14033567]
[1641231441067,0.02141725,46710.0,46704.0,0.14033567]
[1641231441267,0.10903725,46710.0,46704.0,0.14033567]
[1641231441465,1.127,46709.0,46704.0,0.14033567]
[1641231442867,1.927,46709.0,46704.0,0.14033567]
[1641231443068,2.427,46709.0,46698.0,0.57194074]
[1641231443266,1.127,46705.0,46696.0,0.57194074]
[1641231443467,0.02142093,46702.0,46696.0,0.57194074]
[1641231444272,0.02142093,46702.0,46691.0,0.75194074]
[1641231444469,0.02142093,46702.0,46691.0,0.57194074]
[1641231444668,0.02142603,46694.0,46689.0,0.17992743]
[1641231444868,1.127,46693.0,46689.0,0.17992743]
[1641231445068,1.127,46693.0,46687.0,1.14378717]
[1641231445469,1.127,46693.0,46690.0,0.5756468]
[1641231445669,0.11202603,46694.0,46690.0,0.5756468]
[1641231445873,0.28067134,46691.0,46690.0,0.5756468]
[1641231446270,0.28067134,46691.0,46686.0,1.14378717]
[1641231446471,0.28067134,46691.0,46686.0,1.13148717]
[1641231446672,0.28067134,46691.0,46684.0,0.18]
[1641231446975,0.02142778,46687.0,46680.0,2.0974]
[1641231447373,0.02142778,46687.0,46680.0,0.18]
[1641231447571,0.02142778,46687.0,46683.0,0.18]
[1641231447771,0.02142778,46687.0,46686.0,0.001]
[1641231448574,0.16176345,46687.0,46686.0,0.001]
[1641231449775,0.25476345,46687.0,46686.0,0.001]
[1641231450780,0.23333567,46687.0,46686.0,0.001]
[1641231451182,0.14033567,46687.0,46686.0,0.001]
[1641231451382,0.14033567,46687.0,46677.0,0.18]
[1641231451881,0.22933567,46687.0,46677.0,0.18]
[1641231452188,0.22933567,46687.0,46680.0,0.18]
[1641231452691,0.22933567,46687.0,46679.0,0.18]
[1641231453099,1.26733567,46687.0,46676.0,0.18]
[1641231453496,1.26733567,46687.0,46673.0,0.14033567]
[1641231453702,0.009794,46686.0,46673.0,0.14033567]
[1641231453895,0.072684,46686.0,46673.0,0.14033567]
[1641231455497,0.072684,46686.0,46674.0,0.18]
[1641231455697,0.072684,46686.0,46673.0,0.32033567]
[1641231455998,0.02142881,46684.0,46673.0,0.32033567]
[1641231457100,0.02143064,46680.0,46673.0,0.14033567]
[1641231458198,0.0894151,46679.0,46673.0,0.14033567]
[1641231460902,0.02143064,46680.0,46673.0,0.14033567]
[1641231462608,0.09634686,46679.0,46673.0,0.14033567]
[1641231463409,0.02143064,46680.0,46673.0,0.14033567]
[1641231463909,0.11577685,46682.0,46676.0,0.18]
[1641231464109,0.0943471,46682.0,46679.0,0.18]
[1641231464309,0.14033567,46687.0,46673.0,0.22676567]
[1641231464310,0.14033567,46687.0,46673.0,0.40676567]
[1641231464510,0.16176339,46687.0,46677.0,0.18]
[1641231464712,0.16176339,46687.0,46680.0,0.14033567]
[1641231465118,1.071042,46686.0,46680.0,0.14033567]
[1641231466012,1.199042,46686.0,46680.0,0.45133567]
[1641231466612,0.128,46686.0,46680.0,0.27133567]
[1641231467213,0.14033567,46687.0,46680.0,0.14033567]
[1641231468015,1.127,46686.0,46680.0,0.27833567]
[1641231468215,0.02142896,46684.0,46680.0,0.27833567]
[1641231468615,0.05909905,46686.0,46680.0,0.27833567]
[1641231469217,0.05909905,46686.0,46680.0,0.14033567]
[1641231469416,1.071053,46685.0,46680.0,0.14033567]
[1641231470016,1.200053,46685.0,46680.0,0.27133567]
[1641231470618,0.129,46685.0,46680.0,0.27133567]
[1641231471218,0.05909905,46686.0,46680.0,0.14033567]
[1641231471517,0.05909905,46686.0,46680.0,0.32033567]
[1641231471919,0.05909905,46686.0,46680.0,0.45733567]
[1641231472719,0.05909905,46686.0,46680.0,0.27733567]
[1641231472922,0.05909905,46686.0,46680.0,0.45733567]
[1641231473120,0.05909905,46686.0,46680.0,0.27733567]
[1641231473322,0.05909905,46686.0,46680.0,0.14033567]
[1641231473921,0.05909905,46686.0,46680.0,0.27733567]
[1641231475333,0.05909905,46686.0,46680.0,0.14033567]
[1641231475528,0.05909905,46686.0,46681.0,0.18]
[1641231475925,0.17809905,46686.0,46681.0,0.18]
[1641231476326,0.17809905,46686.0,46680.0,0.27533567]
[1641231476527,0.02142415,46695.0,46685.0,0.18]
[1641231476726,0.14033567,46705.0,46692.0,0.18]
[1641231476926,0.02142029,46703.0,46692.0,0.27423]
[1641231477326,1.070755,46699.0,46692.0,0.27423]
[1641231477527,1.16299521,46699.0,46692.0,0.27423]
[1641231477727,0.09224021,46699.0,46692.0,0.27423]
[1641231477928,1.070766,46698.0,46692.0,0.43723]
[1641231478538,1.070766,46698.0,46697.0,0.18]
[1641231478839,0.14033567,46705.0,46697.0,0.14033567]
[1641231479139,0.16175485,46705.0,46697.0,0.14033567]
[1641231479537,1.07064,46704.0,46697.0,0.14033567]
[1641231479936,1.07064,46704.0,46697.0,0.29933567]
[1641231480538,0.05609273,46703.0,46697.0,0.29933567]
[1641231480841,1.070663,46702.0,46697.0,0.29933567]
[1641231481442,1.070663,46702.0,46697.0,0.14033567]
[1641231482041,1.070663,46702.0,46697.0,0.29933567]
[1641231482443,1.144923,46702.0,46697.0,0.159]
[1641231482843,1.154717,46702.0,46697.0,0.29933567]
[1641231483244,1.127,46701.0,46697.0,0.14033567]
[1641231483446,0.02142107,46701.0,46697.0,0.14033567]
[1641231483745,1.070686,46700.0,46697.0,0.14033567]
[1641231483945,1.070686,46700.0,46697.0,0.29033567]
[1641231484346,0.07236191,46699.0,46697.0,0.29033567]
[1641231484746,1.070709,46698.0,46697.0,0.29033567]
[1641231485245,1.070709,46698.0,46697.0,0.14033567]
[1641231485445,1.127,46697.0,46693.0,0.14033567]
[1641231485844,1.070778,46696.0,46693.0,0.14033567]
[1641231486046,0.08283363,46695.0,46693.0,0.28833567]
[1641231486444,0.358224,46694.0,46693.0,0.28833567]
[1641231487244,0.358224,46694.0,46693.0,0.14033567]
[1641231487944,0.358224,46694.0,46693.0,0.28333567]
[1641231489346,0.358224,46694.0,46693.0,0.14033567]
[1641231489947,1.51644279,46694.0,46693.0,0.142]
[1641231490149,1.51644428,46694.0,46693.0,0.142]
[1641231490547,1.51644428,46694.0,46683.0,0.57735404]
[1641231491150,1.51644428,46694.0,46681.0,2.39635404]
[1641231491151,1.127,46692.0,46681.0,2.39635404]
[1641231491348,1.21611,46692.0,46681.0,2.39635404]
[1641231491548,2.197973,46691.0,46681.0,0.57735404]
[1641231491949,0.06496314,46690.0,46681.0,0.57735404]
[1641231492249,1.070996,46689.0,46681.0,0.57735404]
[1641231492751,1.070996,46689.0,46680.0,0.14033567]
[1641231494055,1.223996,46689.0,46680.0,0.27833567]
[1641231495053,0.14033567,46688.0,46680.0,0.27833567]
[1641231495254,0.14033567,46688.0,46680.0,0.14033567]
[1641231495455,1.080824,46687.0,46680.0,0.14033567]
[1641231495955,1.080824,46687.0,46680.0,0.28033567]
[1641231495956,1.234824,46687.0,46680.0,0.28033567]
[1641231496157,2.361824,46687.0,46680.0,0.28033567]
[1641231496360,0.06772168,46686.0,46680.0,0.28033567]
[1641231496758,1.071053,46685.0,46680.0,0.28033567]
[1641231497457,1.071053,46685.0,46680.0,0.14033567]
[1641231498059,1.229053,46685.0,46680.0,0.14033567]
[1641231498963,0.02143031,46681.0,46680.0,0.14033567]
[1641231499159,0.17348226,46681.0,46680.0,0.14033567]
[1641231499961,0.32948226,46681.0,46680.0,0.14033567]
[1641231501259,0.17348226,46681.0,46680.0,0.14033567]
[1641231501961,0.32948226,46681.0,46680.0,0.14033567]
[1641231503361,0.32948226,46681.0,46674.0,0.57735404]
[1641231503362,1.62484595,46681.0,46674.0,0.57735404]
[1641231503566,1.307,46675.0,46671.0,1.15470808]
[1641231503765,0.5,46680.0,46664.0,0.26321789]
[1641231503766,1.308,46672.0,46664.0,0.26321789]
[1641231503967,0.009794,46671.0,46664.0,0.26321789]
[1641231504164,1.127,46670.0,46664.0,0.26321789]
[1641231504368,1.307,46670.0,46664.0,0.26321789]
[1641231504567,1.127,46668.0,46664.0,0.26321789]
[1641231504968,1.071443,46667.0,46664.0,0.26321789]
[1641231505170,0.14033567,46665.0,46664.0,0.26321789]
[1641231505371,0.20047849,46665.0,46656.0,0.02143385]
[1641231505569,0.20047849,46665.0,46656.0,0.98883758]
[1641231505976,0.33047849,46665.0,46656.0,0.98883758]
[1641231506176,0.14033567,46673.0,46664.0,0.18]
[1641231506375,0.14033567,46673.0,46666.0,0.18]
[1641231507978,0.14033567,46673.0,46666.0,0.368]
[1641231508178,0.14033567,46673.0,46667.0,0.96740373]
[1641231509279,0.14033567,46673.0,46666.0,0.188]
[1641231509477,0.14033567,46673.0,46664.0,0.07886]
[1641231509978,0.14033567,46673.0,46664.0,0.189]
[1641231510381,0.14033567,46673.0,46665.0,0.96731214]
[1641231511079,0.14033567,46673.0,46664.0,0.189]
[1641231511380,0.14033567,46673.0,46663.0,0.14033567]
[1641231512079,0.14033567,46673.0,46663.0,0.33133567]
[1641231512280,0.14033567,46673.0,46664.0,0.96736332]
[1641231513279,0.14033567,46673.0,46665.0,0.18]
[1641231514080,0.14033567,46673.0,46665.0,0.367]
[1641231515982,0.14033567,46673.0,46665.0,0.18]
[1641231516182,0.14033567,46673.0,46665.0,0.367]
[1641231517280,0.14033567,46673.0,46665.0,0.187]
[1641231517482,0.14033567,46673.0,46664.0,0.18]
[1641231517681,0.14033567,46673.0,46664.0,0.99416434]
[1641231518082,0.14033567,46673.0,46664.0,1.18116434]
[1641231518383,0.14033567,46673.0,46665.0,0.96732558]
[1641231519686,0.14033567,46673.0,46665.0,1.54969994]
[1641231520083,0.14033567,46673.0,46665.0,1.73769994]
[1641231520486,0.14033567,46673.0,46666.0,0.58237436]
[1641231521587,0.14033567,46673.0,46665.0,0.77037436]
[1641231521983,0.14033567,46673.0,46665.0,0.76237436]
[1641231522186,0.14033567,46673.0,46665.0,0.95037436]
[1641231522384,0.14033567,46673.0,46665.0,0.77037436]
[1641231523483,0.14033567,46673.0,46665.0,0.58237436]
[1641231524086,0.14033567,46673.0,46665.0,0.191]
[1641231524285,0.14033567,46673.0,46665.0,0.371]
[1641231524485,0.14033567,46673.0,46665.0,0.191]